bitfinex-derivatives/quotes_BTCF0:USTF0_20240925
["timestamp","ask_amount","ask_price","bid_price","bid_amount"]
[1727267000110,0.078319,63845.0,63843.0,0.085621]
[1727267000387,0.75645535,63844.0,63843.0,0.078321]
[1727267000588,0.75645535,63844.0,63841.0,0.0656]
[1727267000589,0.078321,63843.0,63841.0,0.0656]
[1727267000788,0.30566029,63843.0,63841.0,0.0656]
[1727267000979,0.16474875,63843.0,63841.0,0.0656]
[1727267001179,0.30557135,63843.0,63841.0,0.0656]
[1727267001489,0.16474875,63843.0,63841.0,0.0656]
[1727267002291,0.078322,63842.0,63841.0,0.0656]
[1727267002492,0.21907143,63842.0,63841.0,0.0656]
[1727267002689,0.078322,63842.0,63841.0,0.0656]
[1727267003094,0.078322,63842.0,63841.0,0.11238389]
[1727267003282,0.078322,63842.0,63841.0,0.0656]
[1727267003989,0.439122,63842.0,63841.0,0.0726]
[1727267004185,0.439122,63842.0,63841.0,0.0776]
[1727267005691,0.078322,63842.0,63841.0,0.0776]
[1727267005891,0.10672904,63842.0,63841.0,0.0776]
[1727267006095,0.46752904,63842.0,63841.0,0.0776]
[1727267009601,0.46752904,63842.0,63841.0,0.155923]
[1727267014996,0.55752904,63842.0,63841.0,0.155923]
[1727267015993,0.47920704,63842.0,63841.0,0.155923]
[1727267016890,0.55752904,63842.0,63841.0,0.155923]
[1727267018098,0.19672904,63842.0,63841.0,0.155923]
[1727267018294,0.55752904,63842.0,63841.0,0.155923]
[1727267021897,0.19672904,63842.0,63841.0,0.155923]
[1727267022301,0.55752904,63842.0,63841.0,0.155923]
[1727267024404,0.65136214,63842.0,63841.0,0.155923]
[1727267024609,0.55752904,63842.0,63841.0,0.155923]
[1727267025303,0.55752904,63842.0,63841.0,0.123523]
[1727267028405,0.19672904,63842.0,63841.0,0.17030689]
[1727267028593,0.55752904,63842.0,63841.0,0.17030689]
[1727267028795,0.55752904,63842.0,63841.0,0.123523]
[1727267029003,0.19672904,63842.0,63841.0,0.123523]
[1727267029193,0.55752904,63842.0,63841.0,0.18590795]
[1727267030302,0.55752904,63842.0,63841.0,0.123523]
[1727267031605,0.19672904,63842.0,63841.0,0.123523]
[1727267031806,0.55752904,63842.0,63841.0,0.123523]
[1727267033699,0.19672904,63842.0,63841.0,0.123523]
[1727267033901,0.55752904,63842.0,63841.0,0.123523]
[1727267034299,0.19672904,63842.0,63841.0,0.123523]
[1727267034608,0.55752904,63842.0,63841.0,0.123523]
[1727267035102,0.19672904,63842.0,63841.0,0.123523]
[1727267035307,0.55752904,63842.0,63841.0,0.123523]
[1727267037995,0.19672904,63842.0,63841.0,0.123523]
[1727267038200,0.55752904,63842.0,63841.0,0.123523]
[1727267038799,0.19672904,63842.0,63841.0,0.123523]
[1727267038998,0.55752904,63842.0,63841.0,0.123523]
[1727267039907,0.19672904,63842.0,63841.0,0.123523]
[1727267040210,0.55752904,63842.0,63841.0,0.123523]
[1727267043108,0.19672904,63842.0,63841.0,0.123523]
[1727267043311,0.55752904,63842.0,63841.0,0.123523]
[1727267044206,0.55752904,63842.0,63841.0,0.132393]
[1727267045807,0.19672904,63842.0,63841.0,0.132393]
[1727267046109,0.55752904,63842.0,63841.0,0.132393]
[1727267047316,0.19672904,63842.0,63841.0,0.132393]
[1727267047497,0.55752904,63842.0,63841.0,0.132393]
[1727267048011,0.19672904,63842.0,63841.0,0.132393]
[1727267048209,0.55752904,63842.0,63841.0,0.132393]
[1727267048912,0.19672904,63842.0,63841.0,0.132393]
[1727267049411,0.55752904,63842.0,63841.0,0.132393]
[1727267057318,0.38920704,63842.0,63841.0,0.132393]
[1727267057522,0.38920704,63842.0,63841.0,0.210716]
[1727267057523,0.48323881,63842.0,63841.0,0.210716]
[1727267057724,0.02840704,63842.0,63841.0,0.289039]
[1727267057918,0.45483177,63846.0,63845.0,0.078318]
[1727267058121,0.3608,63846.0,63845.0,0.12524434]
[1727267058325,0.3608,63846.0,63845.0,0.078318]
[1727267059220,0.3608,63846.0,63845.0,0.081318]
[1727267059420,0.3608,63846.0,63845.0,0.082318]
[1727267060129,0.38881309,63846.0,63845.0,0.082318]
[1727267062025,0.02801309,63846.0,63845.0,0.082318]
[1727267062324,0.3608,63848.0,63847.0,0.078316]
[1727267064019,0.439114,63848.0,63847.0,0.078316]
[1727267064326,0.439114,63848.0,63847.0,0.079316]
[1727267066520,0.3608,63848.0,63847.0,0.079316]
[1727267067328,0.3608,63848.0,63847.0,0.12616666]
[1727267070320,0.470327,63848.0,63847.0,0.079316]
[1727267070628,0.3608,63848.0,63847.0,0.079316]
[1727267071538,0.47032822,63848.0,63847.0,0.079316]
[1727267071835,0.3608,63848.0,63847.0,0.079316]
[1727267072837,0.39915294,63848.0,63847.0,0.079316]
[1727267074539,0.47746694,63848.0,63847.0,0.079316]
[1727267075938,0.47746694,63848.0,63847.0,0.088186]
[1727267076944,0.39915294,63848.0,63847.0,0.088186]
[1727267077434,0.3608,63848.0,63847.0,0.13503666]
[1727267078138,0.19669101,63849.0,63848.0,0.078314]
[1727267080539,0.19669101,63849.0,63848.0,0.12516466]
[1727267081042,0.19669101,63849.0,63848.0,0.078314]
[1727267081642,0.19669101,63849.0,63848.0,0.12516466]
[1727267082832,0.55749101,63849.0,63848.0,0.12516466]
[1727267084043,0.19669101,63849.0,63848.0,0.12516466]
[1727267084245,0.55749101,63849.0,63848.0,0.12516466]
[1727267085443,0.64391727,63849.0,63848.0,0.078314]
[1727267086942,0.56560327,63849.0,63848.0,0.078314]
[1727267087550,0.50724622,63849.0,63848.0,0.078314]
[1727267087739,0.64824566,63849.0,63848.0,0.078314]
[1727267088235,0.45917313,63849.0,63848.0,0.078314]
[1727267089050,0.50724452,63849.0,63848.0,0.078314]
[1727267090156,0.58555752,63849.0,63848.0,0.078314]
[1727267090742,0.72655696,63849.0,63848.0,0.078314]
[1727267091044,0.72659138,63849.0,63848.0,0.078314]
[1727267091349,0.72656528,63849.0,63848.0,0.078314]
[1727267091553,0.55391343,63849.0,63848.0,0.078314]
[1727267092369,0.46749001,63849.0,63848.0,0.14090386]
[1727267094469,0.10669001,63849.0,63848.0,0.14090386]
[1727267095071,0.46749001,63849.0,63848.0,0.14090386]
[1727267097861,0.46749001,63849.0,63848.0,0.078314]
[1727267100589,0.46749001,63849.0,63848.0,0.1408715]
[1727267100966,0.46749001,63849.0,63848.0,0.0625575]
[1727267101161,0.54580301,63849.0,63848.0,0.0625575]
[1727267101375,0.156628,63848.0,63847.0,0.06255877]
[1727267101667,0.078318,63845.0,63841.0,0.06255877]
[1727267101867,0.078324,63840.0,63839.0,0.06255877]
[1727267102066,0.078325,63839.0,63838.0,0.06255877]
[1727267102372,0.168325,63839.0,63838.0,0.06255877]
[1727267102666,0.078327,63838.0,63837.0,0.06255877]
[1727267102876,0.168327,63838.0,63837.0,0.06255877]
[1727267103366,0.168327,63838.0,63837.0,0.14088677]
[1727267104466,0.168327,63838.0,63837.0,0.078328]
[1727267105066,0.168327,63838.0,63837.0,0.089328]
[1727267105268,0.529127,63838.0,63837.0,0.098328]
[1727267105469,0.55760423,63838.0,63837.0,0.098328]
[1727267106666,0.19680423,63838.0,63837.0,0.098328]
[1727267106867,0.55760423,63838.0,63837.0,0.098328]
[1727267107063,0.55760423,63838.0,63837.0,0.107198]
[1727267107280,0.47927723,63838.0,63837.0,0.107198]
[1727267107578,0.57315215,63838.0,63837.0,0.107198]
[1727267109373,0.47927723,63838.0,63837.0,0.107198]
[1727267110080,0.11847723,63838.0,63837.0,0.107198]
[1727267110583,0.47927723,63838.0,63837.0,0.107198]
[1727267110890,0.11847723,63838.0,63837.0,0.107198]
[1727267111070,0.47927723,63838.0,63837.0,0.107198]
[1727267111271,0.11847723,63838.0,63837.0,0.107198]
[1727267111471,0.47927723,63838.0,63837.0,0.107198]
[1727267115791,0.38927723,63838.0,63837.0,0.107198]
[1727267119083,0.3608,63844.0,63837.0,1.44710861]
[1727267119280,0.3608,63844.0,63843.0,0.21908288]
[1727267119591,0.3608,63844.0,63843.0,0.078321]
[1727267121082,0.3608,63844.0,63843.0,0.083321]
[1727267121586,0.3608,63844.0,63843.0,0.086321]
[1727267121792,0.3608,63844.0,63843.0,0.164642]
[1727267124682,0.3608,63844.0,63843.0,0.197842]
[1727267124889,0.3608,63844.0,63843.0,0.209521]
[1727267125086,0.3608,63844.0,63843.0,0.287842]
[1727267125385,0.3608,63844.0,63843.0,0.209521]
[1727267125781,0.3608,63844.0,63843.0,0.287842]
[1727267126577,0.3608,63844.0,63843.0,0.209521]
[1727267127682,0.3608,63844.0,63843.0,0.287842]
[1727267128388,0.3608,63844.0,63843.0,0.209521]
[1727267132685,0.3608,63844.0,63843.0,0.197842]
[1727267133089,0.3608,63844.0,63843.0,0.119521]
[1727267134981,0.3608,63844.0,63843.0,0.197842]
[1727267135297,0.3608,63844.0,63843.0,0.119521]
[1727267135592,0.3608,63844.0,63843.0,0.197842]
[1727267136690,0.3608,63844.0,63843.0,0.287842]
[1727267137393,0.172013,63849.0,63843.0,0.287842]
[1727267137394,0.0037,63849.0,63848.0,0.156628]
[1727267137581,0.3608,63856.0,63848.0,0.51319872]
[1727267137582,0.0037,63854.0,63848.0,0.51319872]
[1727267137787,0.3608,63856.0,63855.0,0.156612]
[1727267137990,0.3608,63856.0,63855.0,0.246612]
[1727267138183,0.3608,63856.0,63855.0,0.30900304]
[1727267138387,0.3608,63856.0,63855.0,0.246612]
[1727267138589,0.3608,63856.0,63855.0,0.30896329]
[1727267138984,0.3608,63856.0,63855.0,0.246612]
[1727267139395,0.02809208,63857.0,63856.0,0.15661]
[1727267139587,0.0037,63861.0,63860.0,0.0783]
[1727267139895,0.0037,63861.0,63856.0,0.14063892]
[1727267139896,0.4553,63864.0,63856.0,0.14063892]
[1727267140297,0.39204197,63864.0,63863.0,0.078296]
[1727267140599,0.38834197,63864.0,63863.0,0.078296]
[1727267141186,0.39034197,63864.0,63863.0,0.078296]
[1727267141786,0.39034197,63864.0,63863.0,0.079296]
[1727267142295,0.39034197,63864.0,63863.0,0.080296]
[1727267145498,0.58662498,63864.0,63863.0,0.080296]
[1727267146195,0.46128857,63864.0,63863.0,0.080296]
[1727267146504,0.58662498,63864.0,63863.0,0.080296]
[1727267147390,0.58663544,63864.0,63863.0,0.080296]
[1727267150495,0.46129903,63864.0,63863.0,0.080296]
[1727267152709,0.39034197,63864.0,63863.0,0.080296]
[1727267154095,0.46863697,63864.0,63863.0,0.080296]
[1727267160604,0.50109127,63864.0,63863.0,0.080296]
[1727267162014,0.59109127,63864.0,63863.0,0.080296]
[1727267162209,0.50109127,63864.0,63863.0,0.080296]
[1727267162399,0.59109127,63864.0,63863.0,0.080296]
[1727267162801,0.59114255,63864.0,63863.0,0.080296]
[1727267163215,0.6294875,63864.0,63863.0,0.080296]
[1727267164404,0.75441374,63864.0,63863.0,0.080296]
[1727267165207,0.75440081,63864.0,63863.0,0.080296]
[1727267165608,0.62947457,63864.0,63863.0,0.080296]
[1727267167711,0.55863697,63864.0,63863.0,0.080296]
[1727267170203,0.55863697,63864.0,63863.0,0.089166]
[1727267175721,0.6295217,63864.0,63863.0,0.089166]
[1727267176406,0.67758449,63864.0,63863.0,0.089166]
[1727267177322,0.6295217,63864.0,63863.0,0.089166]
[1727267177620,0.6775845,63864.0,63863.0,0.089166]
[1727267177811,0.6295217,63864.0,63863.0,0.089166]
[1727267178621,0.2687217,63864.0,63863.0,0.089166]
[1727267178918,0.6295217,63864.0,63863.0,0.089166]
[1727267179508,0.67758459,63864.0,63863.0,0.089166]
[1727267179714,0.6295217,63864.0,63863.0,0.089166]
[1727267180131,0.2687217,63864.0,63863.0,0.089166]
[1727267180425,0.67758459,63864.0,63863.0,0.089166]
[1727267180926,0.6295217,63864.0,63863.0,0.089166]
[1727267181327,0.2687217,63864.0,63863.0,0.089166]
[1727267181524,0.31678459,63864.0,63863.0,0.089166]
[1727267181728,0.67758459,63864.0,63863.0,0.089166]
[1727267182629,0.55863697,63864.0,63863.0,0.089166]
[1727267183826,0.19783697,63864.0,63863.0,0.089166]
[1727267184027,0.55863697,63864.0,63863.0,0.089166]
[1727267186624,0.55863697,63864.0,63863.0,0.080296]
[1727267189223,0.55863697,63864.0,63863.0,0.002]
[1727267189429,0.63693197,63864.0,63863.0,0.002]
[1727267189825,0.73091527,63864.0,63863.0,0.002]
[1727267190223,0.63693197,63864.0,63863.0,0.002]
[1727267194628,0.73088133,63864.0,63863.0,0.002]
[1727267194837,0.63693197,63864.0,63863.0,0.002]
[1727267195235,0.73087604,63864.0,63863.0,0.002]
[1727267195939,0.73087562,63864.0,63863.0,0.002]
[1727267197646,0.75565434,63864.0,63863.0,0.002]
[1727267197851,0.91238393,63864.0,63863.0,0.002]
[1727267198146,0.75565434,63864.0,63863.0,0.002]
[1727267198442,0.91238393,63864.0,63863.0,0.002]
[1727267199035,0.75565434,63864.0,63863.0,0.002]
[1727267200954,1.11645434,63864.0,63863.0,0.01087]
[1727267201149,0.39485434,63864.0,63863.0,0.01087]
[1727267201362,1.11645434,63864.0,63863.0,0.01087]
[1727267203250,0.39485434,63864.0,63863.0,0.01087]
[1727267203452,1.11645434,63864.0,63863.0,0.01087]
[1727267204349,1.11644912,63864.0,63863.0,0.01087]
[1727267205744,0.99773197,63864.0,63863.0,0.01087]
[1727267206050,1.0916507,63864.0,63863.0,0.01087]
[1727267206840,0.3700507,63864.0,63863.0,0.01087]
[1727267207041,1.0916507,63864.0,63863.0,0.01087]
[1727267207847,0.99773197,63864.0,63863.0,0.01087]
[1727267208050,1.0916507,63864.0,63863.0,0.01087]
[1727267209858,0.3700507,63864.0,63863.0,0.01087]
[1727267210041,1.0916507,63864.0,63863.0,0.01087]
[1727267210979,0.3700507,63864.0,63863.0,0.01087]
[1727267211257,1.0916507,63864.0,63863.0,0.01087]
[1727267211953,0.3700507,63864.0,63863.0,0.01087]
[1727267212251,1.0916507,63864.0,63863.0,0.01087]
[1727267212752,1.27319513,63864.0,63863.0,0.01087]
[1727267214140,1.35149013,63864.0,63863.0,0.01087]
[1727267214341,0.156606,63857.0,63856.0,0.0036]
[1727267214653,0.078312,63850.0,63849.0,0.0036]
[1727267214849,0.078312,63850.0,63845.0,0.0308]
[1727267214850,0.65438595,63850.0,63845.0,0.0308]
[1727267215158,0.07066701,63849.0,63848.0,0.41506086]
[1727267216243,0.07066701,63849.0,63848.0,0.42106086]
[1727267217250,0.43146701,63849.0,63848.0,0.42106086]
[1727267217453,0.43146701,63849.0,63848.0,0.42506086]
[1727267217958,0.50978001,63849.0,63848.0,0.42506086]
[1727267220558,0.50978001,63849.0,63848.0,0.34674686]
[1727267220761,0.517426,63849.0,63848.0,0.34674686]
[1727267221452,0.54536969,63849.0,63848.0,0.34674686]
[1727267221644,0.54536969,63849.0,63848.0,0.01]
[1727267224159,0.90616969,63849.0,63848.0,0.01]
[1727267224659,0.18456969,63849.0,63848.0,0.01]
[1727267224983,0.90616969,63849.0,63848.0,0.01]
[1727267225153,0.18456969,63849.0,63848.0,0.01]
[1727267225463,0.90616969,63849.0,63848.0,0.01]
[1727267226352,0.18456969,63849.0,63848.0,0.01]
[1727267226956,0.90616969,63849.0,63848.0,0.01]
[1727267228056,0.156636,63845.0,63844.0,0.00234921]
[1727267228257,0.246636,63845.0,63844.0,0.00234921]
[1727267229665,0.078324,63840.0,63839.0,0.0036]
[1727267229864,0.529124,63840.0,63838.0,0.110526]
[1727267230671,0.168324,63840.0,63838.0,0.110526]
[1727267230971,0.3608,63839.0,63838.0,0.110526]
[1727267231368,0.439125,63839.0,63838.0,0.0322]
[1727267232565,0.078325,63839.0,63838.0,0.0322]
[1727267232862,0.441125,63839.0,63838.0,0.0582]
[1727267233659,0.441125,63839.0,63838.0,0.136527]
[1727267237863,0.080325,63839.0,63838.0,0.136527]
[1727267238764,0.441125,63839.0,63838.0,0.136527]
[1727267239766,0.080325,63839.0,63838.0,0.136527]
[1727267239972,0.441125,63839.0,63838.0,0.136527]
[1727267241973,0.3628,63839.0,63838.0,0.136527]
[1727267242869,0.3628,63839.0,63838.0,0.18340506]
[1727267243068,0.441125,63839.0,63838.0,0.18340506]
[1727267243265,0.441125,63839.0,63838.0,0.136527]
[1727267245272,0.441125,63839.0,63838.0,0.19886092]
[1727267248365,0.441125,63839.0,63838.0,0.136527]
[1727267253178,0.441125,63839.0,63838.0,0.136527]
[1727267255176,0.441125,63839.0,63838.0,0.104327]
[1727267256066,0.53505185,63839.0,63838.0,0.104327]
[1727267257878,0.441125,63839.0,63838.0,0.104327]
[1727267263079,0.474325,63839.0,63838.0,0.104327]
[1727267263785,0.474325,63839.0,63838.0,0.113197]
[1727267264379,0.474325,63839.0,63838.0,0.03487]
[1727267265988,0.474325,63839.0,63838.0,0.113197]
[1727267267775,0.474325,63839.0,63838.0,0.03487]
[1727267268692,0.55265,63839.0,63838.0,0.03487]
[1727267269394,0.66223133,63839.0,63838.0,0.03487]
[1727267269595,0.59101281,63839.0,63838.0,0.03487]
[1727267270084,0.078333,63833.0,63832.0,0.0036]
[1727267270283,0.078333,63833.0,63827.0,0.05116734]
[1727267270284,0.4508,63833.0,63825.0,0.0036]
[1727267270485,0.4508,63826.0,63823.0,0.08069384]
[1727267270693,0.0329,63825.0,63823.0,0.08069384]
[1727267271283,0.0189,63825.0,63823.0,0.08069384]
[1727267271489,0.078344,63824.0,63823.0,0.00234984]
[1727267271993,0.072344,63824.0,63823.0,0.00234984]
[1727267272202,0.433144,63824.0,63823.0,0.01634984]
[1727267272494,0.433144,63824.0,63823.0,0.02134984]
[1727267273089,0.46170054,63824.0,63823.0,0.02134984]
[1727267273994,0.46170054,63824.0,63823.0,0.00734984]
[1727267274193,0.46270054,63824.0,63823.0,0.00734984]
[1727267274885,0.46070054,63824.0,63823.0,0.00234984]
[1727267275088,0.46170054,63824.0,63823.0,0.00234984]
[1727267280498,0.46170054,63824.0,63823.0,0.08069484]
[1727267280807,0.55170054,63824.0,63823.0,0.08069484]
[1727267281893,0.55170054,63824.0,63823.0,0.078345]
[1727267283201,0.47935654,63824.0,63823.0,0.078345]
[1727267283410,0.02855654,63824.0,63823.0,0.51749]
[1727267286103,0.02855654,63824.0,63823.0,0.56440516]
[1727267286605,0.02855654,63824.0,63823.0,0.51749]
[1727267288203,0.02855654,63824.0,63823.0,0.595835]
[1727267288204,0.001,63824.0,63823.0,0.595835]
[1727267288700,0.001,63824.0,63823.0,0.64269734]
[1727267288901,0.0036,63830.0,63829.0,0.078338]
[1727267289100,0.078328,63837.0,63829.0,0.168338]
[1727267289101,0.0036,63835.0,63829.0,0.168338]
[1727267289303,0.078328,63837.0,63836.0,0.078329]
[1727267291515,0.10660651,63837.0,63836.0,0.078329]
[1727267292006,0.11360651,63837.0,63836.0,0.078329]
[1727267292215,0.47440651,63837.0,63836.0,0.078329]
[1727267292506,0.48240651,63837.0,63836.0,0.078329]
[1727267292908,0.47440651,63837.0,63836.0,0.078329]
[1727267293106,0.47840651,63837.0,63836.0,0.078329]
[1727267293512,0.47440651,63837.0,63836.0,0.078329]
[1727267293706,0.47840651,63837.0,63836.0,0.078329]
[1727267294716,0.47140651,63837.0,63836.0,0.078329]
[1727267294907,0.47840651,63837.0,63836.0,0.078329]
[1727267299314,0.11760651,63837.0,63836.0,0.078329]
[1727267299517,0.47840651,63837.0,63836.0,0.078329]
[1727267304111,0.11760651,63837.0,63836.0,0.078329]
[1727267304312,0.47840651,63837.0,63836.0,0.078329]
[1727267307422,0.11760651,63837.0,63836.0,0.078329]
[1727267307721,0.47840651,63837.0,63836.0,0.078329]
[1727267309518,0.078332,63834.0,63833.0,0.12519534]
[1727267309723,0.168332,63834.0,63833.0,0.04686234]
[1727267310224,0.27803079,63834.0,63833.0,0.078333]
[1727267310826,0.28203079,63834.0,63833.0,0.078333]
[1727267311827,0.21069331,63834.0,63833.0,0.078333]
[1727267312429,0.21169331,63834.0,63833.0,0.078333]
[1727267312728,0.21169327,63834.0,63833.0,0.078333]
[1727267313615,0.21169327,63834.0,63830.0,0.032]
[1727267313616,0.078335,63832.0,63830.0,0.032]
[1727267313819,0.39916262,63831.0,63830.0,0.110336]
[1727267314121,0.39916262,63831.0,63830.0,0.078336]
[1727267314122,0.439135,63831.0,63830.0,0.078336]
[1727267316528,0.439135,63831.0,63830.0,0.079336]
[1727267317230,0.440135,63831.0,63830.0,0.079336]
[1727267317626,0.530135,63831.0,63830.0,0.001]
[1727267318021,0.60847,63831.0,63830.0,0.001]
[1727267318630,0.70247415,63831.0,63830.0,0.001]
[1727267319425,0.60847,63831.0,63830.0,0.001]
[1727267319824,0.64177,63831.0,63830.0,0.001]
[1727267320330,1.00257,63831.0,63830.0,0.001]
[1727267321827,0.28097,63831.0,63830.0,0.001]
[1727267322026,1.00257,63831.0,63830.0,0.001]
[1727267323835,0.924235,63831.0,63830.0,0.001]
[1727267325122,0.96260097,63831.0,63830.0,0.001]
[1727267325927,0.60180097,63831.0,63830.0,0.001]
[1727267326123,0.563435,63831.0,63830.0,0.001]
[1727267326729,0.563435,63831.0,63830.0,0.00987]
[1727267328730,0.563435,63831.0,63823.0,0.0036]
[1727267328731,0.078344,63824.0,63823.0,0.0036]
[1727267328927,0.439144,63824.0,63816.0,0.0936]
[1727267329129,0.09383338,63820.0,63816.0,0.09]
[1727267329438,0.09383338,63821.0,63820.0,0.078349]
[1727267330827,0.09583338,63821.0,63820.0,0.079349]
[1727267331940,0.17418138,63821.0,63820.0,0.079349]
[1727267332124,0.26418138,63821.0,63820.0,0.079349]
[1727267332526,0.29232191,63821.0,63820.0,0.079349]
[1727267333239,0.19848853,63821.0,63820.0,0.14203265]
[1727267339648,0.19848853,63821.0,63820.0,0.001]
[1727267341741,0.19848853,63821.0,63820.0,0.079349]
[1727267345056,0.55928853,63821.0,63820.0,0.079349]
[1727267345844,0.19848853,63821.0,63820.0,0.079349]
[1727267346045,0.55928853,63821.0,63820.0,0.079349]
[1727267347053,0.19848853,63821.0,63820.0,0.079349]
[1727267347259,0.55928853,63821.0,63820.0,0.079349]
[1727267347953,0.19848853,63821.0,63820.0,0.079349]
[1727267348252,0.55928853,63821.0,63820.0,0.079349]
[1727267348948,0.55928853,63821.0,63820.0,0.14203265]
[1727267349354,0.55928853,63821.0,63820.0,0.079349]
[1727267351252,0.19848853,63821.0,63820.0,0.079349]
[1727267351445,0.55928853,63821.0,63820.0,0.079349]
[1727267351856,0.19848853,63821.0,63820.0,0.079349]
[1727267352057,0.55928853,63821.0,63820.0,0.079349]
[1727267352558,0.19848853,63821.0,63820.0,0.079349]
[1727267352752,0.55928853,63821.0,63820.0,0.079349]
[1727267352949,0.39094053,63821.0,63820.0,0.079349]
[1727267357961,0.39094053,63821.0,63820.0,0.088219]
[1727267373388,0.46928853,63821.0,63820.0,0.088219]
[1727267374186,0.39094053,63821.0,63820.0,0.088219]
[1727267375288,0.03014053,63821.0,63820.0,0.088219]
[1727267375586,0.03014053,63821.0,63820.0,0.079349]
[1727267375983,0.03014053,63821.0,63820.0,0.1576857]
[1727267376490,0.03014053,63821.0,63820.0,0.079349]
[1727267381095,0.39094053,63821.0,63820.0,0.079349]
[1727267384398,0.03014053,63821.0,63820.0,0.079349]
[1727267384586,0.39094053,63821.0,63820.0,0.079349]
[1727267385592,0.39094053,63821.0,63820.0,0.26673063]
[1727267386793,0.03014053,63821.0,63820.0,0.26673063]
[1727267387197,0.39094053,63821.0,63820.0,0.26673063]
[1727267388395,0.03014053,63821.0,63820.0,0.26673063]
[1727267388699,0.39094053,63821.0,63820.0,0.26673063]
[1727267389503,0.03014053,63821.0,63820.0,0.26673063]
[1727267389700,0.39094053,63821.0,63820.0,0.26673063]
[1727267389901,0.39094053,63821.0,63820.0,0.27560063]
[1727267392923,0.03014053,63821.0,63820.0,0.27560063]
[1727267393202,0.39094053,63821.0,63820.0,0.27560063]
[1727267393904,0.46928853,63821.0,63820.0,0.27560063]
[1727267396218,0.46928853,63821.0,63820.0,0.088219]
[1727267396514,0.39094053,63821.0,63820.0,0.088219]
[1727267396804,0.46928853,63821.0,63820.0,0.088219]
[1727267398008,0.39094053,63821.0,63820.0,0.088219]
[1727267400707,0.50042492,63821.0,63820.0,0.088219]
[1727267404805,0.57877292,63821.0,63820.0,0.088219]
[1727267405917,0.46928853,63821.0,63820.0,0.088219]
[1727267407203,0.46928853,63821.0,63820.0,0.079349]
[1727267408020,0.39094053,63821.0,63820.0,0.079349]
[1727267408406,0.39094053,63821.0,63820.0,0.157698]
[1727267408608,0.39094053,63821.0,63820.0,0.2360347]
[1727267408816,0.39094053,63821.0,63820.0,0.26654474]
[1727267409412,0.03014053,63821.0,63820.0,0.26654474]
[1727267411024,0.03014053,63821.0,63820.0,0.079349]
[1727267411320,0.39094053,63821.0,63820.0,0.079349]
[1727267412109,0.46928853,63821.0,63820.0,0.079349]
[1727267415521,0.51738131,63821.0,63820.0,0.079349]
[1727267415824,0.55575013,63821.0,63820.0,0.079349]
[1727267416018,0.55575018,63821.0,63820.0,0.079349]
[1727267416623,0.50765741,63821.0,63820.0,0.079349]
[1727267416817,0.55575016,63821.0,63820.0,0.079349]
[1727267417114,0.50765685,63821.0,63820.0,0.079349]
[1727267417321,0.63305459,63821.0,63820.0,0.079349]
[1727267419312,0.50765685,63821.0,63820.0,0.079349]
[1727267419515,0.63305746,63821.0,63820.0,0.079349]
[1727267419820,0.50765685,63821.0,63820.0,0.079349]
[1727267420016,0.63305739,63821.0,63820.0,0.079349]
[1727267421627,0.27225739,63821.0,63820.0,0.088219]
[1727267421925,0.63305866,63821.0,63820.0,0.088219]
[1727267422628,0.46928853,63821.0,63820.0,0.088219]
[1727267424629,0.10848853,63821.0,63820.0,0.088219]
[1727267425024,0.46928853,63821.0,63820.0,0.088219]
[1727267425729,0.39094053,63821.0,63820.0,0.088219]
[1727267426321,0.39094053,63821.0,63820.0,0.166568]
[1727267426527,0.39094053,63821.0,63820.0,0.35353125]
[1727267426729,0.39094053,63821.0,63820.0,0.24484897]
[1727267427032,0.39094053,63821.0,63820.0,0.166568]
[1727267428228,0.39094053,63821.0,63820.0,0.24484897]
[1727267429231,0.39094053,63821.0,63820.0,0.166568]
[1727267430226,0.39094053,63821.0,63820.0,0.24484897]
[1727267430626,0.42930727,63821.0,63820.0,0.166568]
[1727267430826,0.39094053,63821.0,63820.0,0.166568]
[1727267431834,0.03014053,63821.0,63820.0,0.166568]
[1727267438436,0.03014053,63821.0,63820.0,0.157698]
[1727267442247,0.03014053,63821.0,63820.0,0.079349]
[1727267443140,0.10848853,63821.0,63820.0,0.079349]
[1727267443738,0.10848853,63821.0,63820.0,0.14185949]
[1727267444145,0.10848853,63821.0,63820.0,0.079349]
[1727267445641,0.1949496,63821.0,63820.0,0.079349]
[1727267445846,0.10848853,63821.0,63820.0,0.079349]
[1727267446041,0.19494959,63821.0,63820.0,0.079349]
[1727267446451,0.33588278,63821.0,63820.0,0.079349]
[1727267446749,0.19494993,63821.0,63820.0,0.001]
[1727267446941,0.33588312,63821.0,63820.0,0.001]
[1727267447142,0.19494993,63821.0,63820.0,0.001]
[1727267447342,0.27329793,63821.0,63820.0,0.001]
[1727267447640,0.27329793,63821.0,63814.0,0.078356]
[1727267447641,0.078355,63815.0,63814.0,0.078356]
[1727267447952,0.11672361,63815.0,63814.0,0.078356]
[1727267449156,0.11772361,63815.0,63814.0,0.078356]
[1727267449355,0.11872361,63815.0,63814.0,0.078356]
[1727267450648,0.11872599,63815.0,63814.0,0.078356]
[1727267451949,0.04037099,63815.0,63814.0,0.078356]
[1727267452656,0.002,63815.0,63814.0,0.15663697]
[1727267452958,0.002,63815.0,63814.0,0.26549289]
[1727267453857,0.002,63815.0,63814.0,0.27436289]
[1727267455255,0.080355,63815.0,63814.0,0.16550697]
[1727267456448,0.002,63815.0,63814.0,0.16550697]
[1727267459159,0.002,63815.0,63814.0,0.087226]
[1727267459458,0.002,63815.0,63814.0,0.16550697]
[1727267460162,0.002,63815.0,63814.0,0.087226]
[1727267460752,0.002,63815.0,63814.0,0.16550697]
[1727267462256,0.002,63815.0,63814.0,0.165582]
[1727267462565,0.2036,63820.0,63819.0,0.07835]
[1727267462768,0.2036,63820.0,63819.0,0.16835]
[1727267462769,0.2,63820.0,63819.0,0.16835]
[1727267462964,0.2,63820.0,63819.0,0.2308622]
[1727267463558,0.2,63820.0,63819.0,0.16835]
[1727267464365,0.278349,63820.0,63819.0,0.2308656]
[1727267464551,0.279349,63820.0,63819.0,0.1408656]
[1727267464864,0.280349,63820.0,63819.0,0.07835]
[1727267467462,0.280349,63820.0,63819.0,0.14088723]
[1727267467669,0.31871874,63820.0,63819.0,0.07835]